bitfinex/quotes_BTCUSD_20250901
["timestamp","ask_amount","ask_price","bid_price","bid_amount"]
[1756709346789,1e-08,108220.0,108210.0,1.64125968]
[1756709347368,1e-08,108220.0,108210.0,1.39023967]
[1756709347580,1e-08,108220.0,108210.0,0.46202327]
[1756709348041,0.18480873,108220.0,108210.0,0.23306327]
[1756709348210,1e-08,108220.0,108210.0,0.39094327]
[1756709348408,1e-08,108220.0,108210.0,0.38694327]
[1756709348856,1e-08,108220.0,108210.0,0.38794327]
[1756709349215,1e-08,108220.0,108210.0,0.38494327]
[1756709349416,0.18480873,108220.0,108210.0,0.38594327]
[1756709349634,0.18480873,108220.0,108210.0,0.18730173]
[1756709349982,0.20574755,108220.0,108210.0,0.00147593]
[1756709350273,0.20574755,108220.0,108210.0,0.00047593]
[1756709350419,0.20574755,108220.0,108210.0,0.00247593]
[1756709351831,0.20574755,108220.0,108210.0,0.18730173]
[1756709352055,0.02093883,108220.0,108210.0,0.18730173]
[1756709353128,0.02093883,108220.0,108210.0,0.34514173]
[1756709353675,0.20574755,108220.0,108210.0,0.34514173]
[1756709353883,0.02093883,108220.0,108210.0,0.18730173]
[1756709354057,0.20574755,108220.0,108210.0,0.34518173]
[1756709356226,0.02093883,108220.0,108210.0,0.34518173]
[1756709356439,0.20574755,108220.0,108210.0,0.34518173]
[1756709358759,0.20574755,108220.0,108210.0,0.16035593]
[1756709358999,0.55188395,108220.0,108210.0,0.00247593]
[1756709359236,0.20574755,108220.0,108210.0,0.00247593]
[1756709359502,0.20574755,108220.0,108210.0,0.18730173]
[1756709361595,0.02093883,108220.0,108210.0,0.18730173]
[1756709362441,0.20574755,108220.0,108210.0,0.18730173]
[1756709363639,0.20574755,108220.0,108210.0,0.00247593]
[1756709363840,0.64486396,108220.0,108210.0,0.00247593]
[1756709364043,0.63125693,108220.0,108210.0,0.00247593]
[1756709365000,0.78885693,108220.0,108210.0,0.00247593]
[1756709366900,0.83885693,108220.0,108210.0,0.00247593]
[1756709367453,0.50632756,108220.0,108210.0,0.00247593]
[1756709367658,0.83885693,108220.0,108210.0,0.00247593]
[1756709368960,1.17885693,108220.0,108210.0,0.00247593]
[1756709370275,1.17869693,108220.0,108210.0,0.00247593]
[1756709373712,1.02125693,108220.0,108210.0,0.00247593]
[1756709374019,1.17857693,108220.0,108210.0,0.00247593]
[1756709374420,0.91704756,108220.0,108210.0,0.00247593]
[1756709374656,1.24957693,108220.0,108210.0,0.00247593]
[1756709374830,1.24953693,108220.0,108210.0,0.00247593]
[1756709375213,0.23495884,108220.0,108210.0,0.18730173]
[1756709375417,0.57700756,108220.0,108210.0,0.18730173]
[1756709375858,0.57704756,108220.0,108210.0,0.18730173]
[1756709376273,0.57704756,108220.0,108210.0,0.00247593]
[1756709378605,0.90957693,108220.0,108210.0,0.00247593]
[1756709379407,0.57704756,108220.0,108210.0,0.00247593]
[1756709384946,0.90957693,108220.0,108210.0,0.00247593]
[1756709385987,0.57704756,108220.0,108210.0,0.00247593]
[1756709386189,0.90957693,108220.0,108210.0,0.00247593]
[1756709390082,1.5821063,108220.0,108210.0,0.00247593]
[1756709391497,1.5821063,108220.0,108210.0,0.00147593]
[1756709391875,1.5821063,108220.0,108210.0,0.00047593]
[1756709392393,1.5841063,108220.0,108210.0,0.00047593]
[1756709392601,1.5871063,108220.0,108210.0,0.00047593]
[1756709393649,1.5851063,108220.0,108210.0,0.00047593]
[1756709393861,1.5871063,108220.0,108210.0,0.00047593]
[1756709394917,1.4298263,108220.0,108210.0,0.00047593]
[1756709395153,1.5868663,108220.0,108210.0,0.00047593]
[1756709395367,1.6146433,108220.0,108210.0,0.00047593]
[1756709396197,1.12507393,108220.0,108210.0,0.00047593]
[1756709396425,1.28211393,108220.0,108210.0,0.00047593]
[1756709396637,1.6146433,108220.0,108210.0,0.00047593]
[1756709397262,1.4576033,108220.0,108210.0,0.00047593]
[1756709397389,1.6150033,108220.0,108210.0,0.00047593]
[1756709400672,0.52484288,108200.0,108190.0,0.0721143]
[1756709400875,1.17871226,108200.0,108190.0,0.0725907]
[1756709401456,1.17871226,108200.0,108190.0,0.0004764]
[1756709402300,1.20165108,108200.0,108190.0,0.0004764]
[1756709402751,1.22942908,108200.0,108190.0,0.0004764]
[1756709402934,1.23042908,108200.0,108190.0,0.0004764]
[1756709403130,1.23034908,108200.0,108190.0,0.0004764]
[1756709403338,1.20257108,108200.0,108190.0,0.0004764]
[1756709404209,1.21184422,108200.0,108190.0,0.0004764]
[1756709404615,1.54437359,108200.0,108190.0,0.0004764]
[1756709404834,1.57215459,108200.0,108190.0,0.0004764]
[1756709405415,1.23962522,108200.0,108190.0,0.0004764]
[1756709406020,1.57215459,108200.0,108190.0,0.0004764]
[1756709410234,1.62215459,108200.0,108190.0,0.0004764]
[1756709410796,1.57215459,108200.0,108190.0,0.0004764]
[1756709411018,1.62215459,108200.0,108190.0,0.0004764]
[1756709411804,1.13238522,108200.0,108190.0,0.0004764]
[1756709411995,1.28966522,108200.0,108190.0,0.0004764]
[1756709412189,1.08238522,108200.0,108190.0,0.0004764]
[1756709412597,1.23966522,108200.0,108190.0,0.0004764]
[1756709415614,1.23466522,108200.0,108190.0,0.0004764]
[1756709416589,1.61719459,108200.0,108190.0,0.0004764]
[1756709417203,0.79485585,108200.0,108190.0,0.0004764]
[1756709417404,1.28490522,108200.0,108190.0,0.0004764]
[1756709417616,0.95245585,108200.0,108190.0,0.0004764]
[1756709417819,1.28498522,108200.0,108190.0,0.0004764]
[1756709418252,1.07738522,108200.0,108190.0,0.0004764]
[1756709418453,1.23498522,108200.0,108190.0,0.0004764]
[1756709422976,0.90245585,108200.0,108190.0,0.0004764]
[1756709423140,1.23498522,108200.0,108190.0,0.0004764]
[1756709424596,0.40485585,108200.0,108190.0,0.0004764]
[1756709424741,0.89482522,108200.0,108190.0,0.0004764]
[1756709425186,1.2138864,108200.0,108190.0,0.0004764]
[1756709425419,1.23482522,108200.0,108190.0,0.0004764]
[1756709425836,0.56229585,108200.0,108190.0,0.0004764]
[1756709426114,0.38391703,108200.0,108190.0,0.0004764]
[1756709426324,0.38391703,108200.0,108190.0,0.18533636]
[1756709426325,0.50454289,108200.0,108190.0,0.18533636]
[1756709426527,0.52548171,108200.0,108190.0,0.18533636]
[1756709428350,0.85801108,108200.0,108190.0,0.18533636]
[1756709428574,0.003,108200.0,108190.0,0.18533636]
[1756709428796,0.16064,108200.0,108190.0,0.18533636]
[1756709429020,0.21064,108200.0,108190.0,0.18533636]
[1756709429545,0.053,108200.0,108190.0,0.18533636]
[1756709429786,0.20972,108200.0,108190.0,0.18533636]
[1756709430017,0.21072,108200.0,108190.0,0.18533636]
[1756709430449,0.20872,108200.0,108190.0,0.18533636]
[1756709430671,0.20972,108200.0,108190.0,0.18533636]
[1756709431338,0.20872,108200.0,108190.0,0.18533636]
[1756709434528,0.051,108200.0,108190.0,0.51786573]
[1756709434791,0.051,108200.0,108190.0,0.67550573]
[1756709436823,0.05,108200.0,108190.0,0.67550573]
[1756709437064,0.05,108200.0,108190.0,0.67650573]
[1756709438140,0.05,108200.0,108190.0,0.51986573]
[1756709438324,0.05,108200.0,108190.0,0.67742573]
[1756709439184,0.05,108200.0,108190.0,0.67734573]
[1756709440473,0.05,108200.0,108190.0,0.18733636]
[1756709440730,0.38252937,108200.0,108190.0,0.18733636]
[1756709440939,0.72497225,108200.0,108190.0,0.18733636]
[1756709441352,0.2076,108200.0,108190.0,0.18733636]
[1756709441566,0.72497225,108200.0,108190.0,0.18733636]
[1756709442087,0.2076,108200.0,108190.0,0.18733636]
[1756709442289,0.39244288,108200.0,108190.0,0.18633636]
[1756709442933,0.39244288,108200.0,108190.0,0.18533636]
[1756709443347,0.39344288,108200.0,108190.0,0.18533636]
[1756709444816,0.2086,108200.0,108190.0,0.18533636]
[1756709445447,0.051,108200.0,108190.0,0.18533636]
[1756709446274,0.051,108200.0,108190.0,0.51786573]
[1756709446634,0.05,108200.0,108190.0,0.51786573]
[1756709447139,0.051,108200.0,108190.0,0.51786573]
[1756709447564,0.051,108200.0,108190.0,0.67530573]
[1756709447734,0.051,108200.0,108190.0,0.34281636]
[1756709447923,0.05,108200.0,108190.0,0.34281636]
[1756709448554,0.05,108200.0,108190.0,0.34381636]
[1756709448810,0.05,108200.0,108190.0,0.18633636]
[1756709448941,0.05,108200.0,108190.0,0.34389636]
[1756709449739,0.051,108200.0,108190.0,0.34389636]
[1756709449955,0.05,108200.0,108190.0,0.34389636]
[1756709450367,0.05,108200.0,108190.0,0.34489636]
[1756709451896,0.05,108200.0,108190.0,0.34493636]
[1756709454369,0.05,108200.0,108190.0,0.18733636]
[1756709454572,0.05,108200.0,108190.0,0.34481636]
[1756709456615,0.05,108200.0,108190.0,0.18733636]
[1756709456819,0.05,108200.0,108190.0,0.34485636]
[1756709457020,0.05,108200.0,108190.0,0.34481636]
[1756709457246,0.58831107,108200.0,108190.0,0.18733636]
[1756709457449,0.58831107,108200.0,108190.0,0.0024764]
[1756709457629,0.68129108,108200.0,108190.0,0.0024764]
[1756709459649,0.83889108,108200.0,108190.0,0.0024764]
[1756709463183,0.90993108,108200.0,108190.0,0.0024764]
[1756709466512,0.75233108,108200.0,108190.0,0.0024764]
[1756709466820,0.90973108,108200.0,108190.0,0.0024764]
[1756709467030,0.75233108,108200.0,108190.0,0.0024764]
[1756709467237,0.90973108,108200.0,108190.0,0.0024764]
[1756709467793,0.90977108,108200.0,108190.0,0.18733636]
[1756709467995,0.90977108,108200.0,108190.0,0.0024764]
[1756709471093,1.24977108,108200.0,108190.0,0.0024764]
[1756709471432,1.27754908,108200.0,108190.0,0.0024764]
[1756709472873,0.94501971,108200.0,108190.0,0.0024764]
[1756709473217,0.78757971,108200.0,108190.0,0.0024764]
[1756709473425,0.94497971,108200.0,108190.0,0.0024764]
[1756709473621,1.24973108,108200.0,108190.0,0.0024764]
[1756709474041,1.24973108,108200.0,108190.0,0.0014764]
[1756709474369,1.25073108,108200.0,108190.0,0.0004764]
[1756709475223,0.91828171,108200.0,108190.0,0.0004764]
[1756709475420,1.25081108,108200.0,108190.0,0.0004764]
[1756709475625,1.25181108,108200.0,108190.0,0.0004764]
[1756709476029,1.24981108,108200.0,108190.0,0.0004764]
[1756709476230,1.25181108,108200.0,108190.0,0.0004764]
[1756709476524,1.25281108,108200.0,108190.0,0.0004764]
[1756709476836,1.25181108,108200.0,108190.0,0.0004764]
[1756709477255,1.25281108,108200.0,108190.0,0.0004764]
[1756709477694,1.28058908,108200.0,108190.0,0.0004764]
[1756709481152,0.79057971,108200.0,108190.0,0.0004764]
[1756709481376,1.28066908,108200.0,108190.0,0.0004764]
[1756709481581,0.89938289,108200.0,108190.0,0.18533636]
[1756709481779,0.92032171,108200.0,108190.0,0.18533636]
[1756709481977,1.25285108,108200.0,108190.0,0.18533636]
[1756709482630,0.053,108200.0,108190.0,0.18533636]
[1756709482799,0.23153882,108200.0,108190.0,0.18533636]
[1756709482998,0.2106,108200.0,108190.0,0.18533636]
[1756709483448,0.20964,108200.0,108190.0,0.18533636]
[1756709483603,0.05,108200.0,108190.0,0.18533636]
[1756709483803,0.051,108200.0,108190.0,0.18533636]
[1756709484032,0.052,108200.0,108190.0,0.18533636]
[1756709484221,0.051,108200.0,108190.0,0.51786573]
[1756709484379,0.05,108200.0,108190.0,0.51786573]
[1756709484801,0.051,108200.0,108190.0,0.18533636]
[1756709486392,0.05,108200.0,108190.0,0.18633636]
[1756709486731,0.051,108200.0,108190.0,0.18633636]
[1756709487333,0.051,108200.0,108190.0,0.22860845]
[1756709487533,0.05,108200.0,108190.0,0.22860845]
[1756709487974,0.05,108200.0,108190.0,0.22960845]
[1756709496216,0.05,108200.0,108190.0,0.56213782]
[1756709497120,0.05,108200.0,108190.0,0.22960845]
[1756709501231,0.05,108200.0,108190.0,0.38680845]
[1756709502289,0.05,108200.0,108190.0,0.22960845]
[1756709502510,0.05,108200.0,108190.0,0.38680845]
[1756709506038,0.05,108200.0,108190.0,0.22960845]
[1756709506239,0.05,108200.0,108190.0,0.38680845]
[1756709509981,0.05,108200.0,108190.0,0.71933782]
[1756709510548,0.05,108200.0,108190.0,0.22960845]
[1756709510723,0.05,108200.0,108190.0,0.38656845]
[1756709512758,0.05,108200.0,108190.0,0.71909782]
[1756709515603,0.05,108200.0,108190.0,0.38656845]
[1756709520459,0.05,108200.0,108190.0,0.38632845]
[1756709524684,0.05,108200.0,108190.0,0.39556442]
[1756709525030,0.05,108200.0,108190.0,0.23884442]
[1756709525231,0.05,108200.0,108190.0,0.39560442]
[1756709525864,0.05,108200.0,108190.0,0.38632845]
[1756709526068,0.05,108200.0,108190.0,0.22960845]
[1756709526268,0.05,108200.0,108190.0,0.38632845]
[1756709531338,0.05,108200.0,108190.0,0.22960845]
[1756709531538,0.05,108200.0,108190.0,0.38620845]
[1756709538859,0.05,108200.0,108190.0,0.04474849]
[1756709538860,0.56737225,108200.0,108190.0,0.04474849]
[1756709539094,0.83777108,108200.0,108190.0,0.0024764]
[1756709540519,0.86554608,108200.0,108190.0,0.0024764]
[1756709541670,0.53301671,108200.0,108190.0,0.0024764]
[1756709541867,0.86554608,108200.0,108190.0,0.0024764]
[1756709542274,0.70906608,108200.0,108190.0,0.0024764]
[1756709542471,0.86566608,108200.0,108190.0,0.0024764]
[1756709543094,0.53313671,108200.0,108190.0,0.0024764]
[1756709543304,0.86566608,108200.0,108190.0,0.0024764]
[1756709552949,0.70906608,108200.0,108190.0,0.0024764]
[1756709553100,0.39124288,108200.0,108190.0,0.0024764]
[1756709553310,0.74471107,108200.0,108190.0,0.0024764]
[1756709554281,0.4121817,108200.0,108190.0,0.0024764]
[1756709554434,0.74471107,108200.0,108190.0,0.0024764]
[1756709556909,0.74471107,108200.0,108190.0,0.18733636]
[1756709557087,0.74471107,108200.0,108190.0,0.0024764]
[1756709557656,0.83769108,108200.0,108190.0,0.0024764]
[1756709559212,0.68129108,108200.0,108190.0,0.0024764]
[1756709559412,0.07093882,108200.0,108190.0,0.1896471]
[1756709559606,0.22717882,108200.0,108190.0,0.18733636]
[1756709559810,0.07093882,108200.0,108190.0,0.18733636]
[1756709560014,0.05,108200.0,108190.0,0.51986573]
[1756709560561,0.05,108200.0,108190.0,0.18733636]
[1756709561110,0.05,108200.0,108190.0,0.51986573]
[1756709562277,0.15624,108210.0,108200.0,0.18484288]
[1756709564715,0.15724,108210.0,108200.0,0.18484288]
[1756709567351,0.3420658,108210.0,108200.0,0.18484288]
[1756709567502,0.48976937,108210.0,108200.0,0.18484288]
[1756709567905,0.67459517,108210.0,108200.0,0.18484288]
[1756709568100,0.69553399,108210.0,108190.0,0.38287037]
[1756709568315,0.788514,108210.0,108190.0,0.22663037]
[1756709569428,0.787514,108210.0,108200.0,0.18484288]
[1756709569625,0.787514,108210.0,108190.0,0.22663037]
[1756709569826,0.6026882,108210.0,108200.0,0.18484288]
[1756709570071,0.787514,108210.0,108200.0,0.18484288]
[1756709571096,0.788514,108210.0,108200.0,0.18484288]
[1756709571246,0.787514,108210.0,108200.0,0.18484288]
[1756709571593,0.788514,108210.0,108200.0,0.18484288]
[1756709580838,0.18484288,108200.0,108190.0,0.22663037]
[1756709581092,0.788514,108210.0,108190.0,0.22663037]
[1756709581653,0.788514,108210.0,108200.0,0.18484288]
[1756709581972,0.787514,108210.0,108200.0,0.18484288]
[1756709582309,0.788514,108210.0,108200.0,0.18484288]
[1756709582722,0.787514,108210.0,108200.0,0.18484288]
[1756709584047,0.788514,108210.0,108200.0,0.18484288]
[1756709591508,0.4474482,108210.0,108200.0,0.18484288]
[1756709591705,0.6036482,108210.0,108200.0,0.18484288]
[1756709592132,0.788474,108210.0,108200.0,0.18484288]
[1756709592336,0.6036482,108210.0,108200.0,0.18484288]
[1756709592530,0.788474,108210.0,108200.0,0.18484288]
[1756709592923,0.6036482,108210.0,108200.0,0.18484288]
[1756709593563,0.788474,108210.0,108200.0,0.18484288]
[1756709593970,0.7884152,108210.0,108200.0,0.18484288]
[1756709594185,0.6035894,108210.0,108200.0,0.18484288]
[1756709597263,0.7884152,108210.0,108200.0,0.18484288]
[1756709597676,0.6035894,108210.0,108200.0,0.18484288]
[1756709599809,0.7884152,108210.0,108200.0,0.18484288]
[1756709600989,0.18484288,108200.0,108190.0,0.22663037]
[1756709601205,0.48863057,108200.0,108190.0,0.22663037]
[1756709602080,0.48863057,108200.0,108190.0,0.22763037]
[1756709603008,0.48863057,108200.0,108190.0,0.22863037]
[1756709603232,0.67347345,108200.0,108190.0,0.22863037]
[1756709603458,0.48863057,108200.0,108190.0,0.22863037]
[1756709607400,1.11986285,108200.0,108190.0,0.0024764]
[1756709607747,1.19090285,108200.0,108190.0,0.0024764]
[1756709608173,1.03474285,108200.0,108190.0,0.0024764]
[1756709608388,1.19090285,108200.0,108190.0,0.0024764]
[1756709610180,0.85855571,108200.0,108190.0,0.0024764]
[1756709612610,0.52596171,108200.0,108190.0,0.0024764]
[1756709612845,0.85855571,108200.0,108190.0,0.0024764]
[1756709618143,0.36980171,108200.0,108190.0,0.0024764]
[1756709618337,0.85855571,108200.0,108190.0,0.0024764]
[1756709618676,0.36980171,108200.0,108190.0,0.0024764]
[1756709618880,0.52596171,108200.0,108190.0,0.0024764]
[1756709619086,0.85855571,108200.0,108190.0,0.0024764]
[1756709620902,0.8573311,108200.0,108190.0,0.0024764]
[1756709629078,1.1973311,108200.0,108190.0,0.0024764]
[1756709629462,1.2251091,108200.0,108190.0,0.0024764]
[1756709630254,1.2251091,108200.0,108190.0,0.0014764]
[1756709630449,1.2261091,108200.0,108190.0,0.0004764]
[1756709630999,1.2281091,108200.0,108190.0,0.0004764]
[1756709638052,1.89357166,108200.0,108190.0,0.0004764]
[1756709638499,1.73741166,108200.0,108190.0,0.0004764]
[1756709638710,1.56084614,108200.0,108190.0,0.0004764]
[1756709639556,0.71841628,108200.0,108190.0,0.0004764]
[1756709639780,1.19990732,108200.0,108190.0,0.0004764]
[1756709639982,1.17212932,108200.0,108190.0,0.0004764]
[1756709640200,1.19306814,108200.0,108190.0,0.0004764]
[1756709640422,1.19306814,108200.0,108190.0,0.18533636]
[1756709640423,0.8394438,108200.0,108190.0,0.18533636]
[1756709640695,0.50675828,108200.0,108190.0,0.18533636]
[1756709640857,0.88815562,108200.0,108190.0,0.18533636]
[1756709641075,0.8672168,108200.0,108190.0,0.18533636]
[1756709641525,0.88815562,108200.0,108190.0,0.18533636]
[1756709641929,0.88811562,108200.0,108190.0,0.18533636]
[1756709642085,0.86018798,108200.0,108190.0,0.18533636]
[1756709643773,0.86018798,108200.0,108190.0,0.0004764]
[1756709644201,0.86018798,108200.0,108190.0,0.18533636]
[1756709645169,0.86018798,108200.0,108190.0,0.0004764]
[1756709646395,0.88796498,108200.0,108190.0,0.0004764]
[1756709646596,0.73188498,108200.0,108190.0,0.0004764]
[1756709646795,0.88796498,108200.0,108190.0,0.0004764]
[1756709649125,0.73188498,108200.0,108190.0,0.0004764]
[1756709649328,0.88796498,108200.0,108190.0,0.0004764]
[1756709653967,1.56049586,108200.0,108190.0,0.0004764]
[1756709658952,1.22796498,108200.0,108190.0,0.0004764]
[1756709659364,1.56049586,108200.0,108190.0,0.0004764]
[1756709660106,1.07188498,108200.0,108190.0,0.0004764]
[1756709660308,1.22796498,108200.0,108190.0,0.0004764]
[1756709661108,1.07188498,108200.0,108190.0,0.0004764]
[1756709661740,1.22796498,108200.0,108190.0,0.0004764]
[1756709663500,1.07188498,108200.0,108190.0,0.0004764]
[1756709663707,1.22796498,108200.0,108190.0,0.0004764]
[1756709675556,1.07188498,108200.0,108190.0,0.0004764]
[1756709675762,1.22792498,108200.0,108190.0,0.0004764]
[1756709678327,0.88792498,108200.0,108190.0,0.0004764]
[1756709680935,0.88792498,108200.0,108190.0,0.18533636]
[1756709681680,0.88792498,108200.0,108190.0,0.0004764]
[1756709682427,0.88792498,108200.0,108190.0,0.18533636]
[1756709683798,0.88792498,108200.0,108190.0,0.0004764]
[1756709683994,0.88792498,108200.0,108190.0,0.18533636]
[1756709684372,0.88788498,108200.0,108190.0,0.18533636]
[1756709685320,0.54826671,108200.0,108190.0,0.18533636]
[1756709685520,0.37173583,108200.0,108190.0,0.18533636]
[1756709685720,0.25097882,108200.0,108190.0,0.18533636]
[1756709686457,0.09497882,108200.0,108190.0,0.18533636]
[1756709686653,0.25097882,108200.0,108190.0,0.18533636]
[1756709687685,0.5835097,108200.0,108190.0,0.18533636]
[1756709689888,0.76835258,108200.0,108190.0,0.18533636]
[1756709693353,0.4358217,108200.0,108190.0,0.18533636]
[1756709693693,0.76835258,108200.0,108190.0,0.18533636]
[1756709700276,0.4358217,108200.0,108190.0,0.18533636]
[1756709700482,0.5835097,108200.0,108190.0,0.18533636]
[1756709700918,0.76835258,108200.0,108190.0,0.18533636]
[1756709701129,0.5835097,108200.0,108190.0,0.18533636]
[1756709701895,0.76835258,108200.0,108190.0,0.18533636]
[1756709708448,0.76835258,108200.0,108190.0,0.0004764]
[1756709708617,0.76835258,108200.0,108190.0,0.18533636]
[1756709709290,0.09497882,108200.0,108190.0,0.18533636]
[1756709709451,0.003,108200.0,108190.0,0.18533636]
[1756709709792,0.003,108200.0,108190.0,0.34125636]
[1756709710402,0.002,108200.0,108190.0,0.35064512]
[1756709710752,0.002,108200.0,108190.0,0.34125636]
[1756709711585,0.15592,108210.0,108200.0,0.18484288]
[1756709711586,0.17685882,108210.0,108200.0,0.18484288]
[1756709712872,0.17785882,108210.0,108200.0,0.18484288]
[1756709713295,0.36268462,108210.0,108200.0,0.18484288]
[1756709713490,0.6952155,108210.0,108200.0,0.18484288]
[1756709714393,0.5103897,108210.0,108200.0,0.18484288]
[1756709716183,0.17785882,108210.0,108200.0,0.18484288]
[1756709716439,0.5103897,108210.0,108200.0,0.18484288]
[1756709717388,0.6952155,108210.0,108200.0,0.18484288]
[1756709723841,0.02193882,108210.0,108200.0,0.18484288]
[1756709724116,0.5103497,108210.0,108200.0,0.18484288]
[1756709725029,0.17781882,108210.0,108200.0,0.18484288]
[1756709725248,0.5103497,108210.0,108200.0,0.18484288]
[1756709725868,0.6951755,108210.0,108200.0,0.18484288]
[1756709726621,0.17777882,108210.0,108200.0,0.18484288]
[1756709728962,0.6951355,108210.0,108200.0,0.18484288]
[1756709731110,0.5103097,108210.0,108200.0,0.18484288]
[1756709734470,0.6951355,108210.0,108200.0,0.18484288]
[1756709734806,0.5103097,108210.0,108200.0,0.18484288]
[1756709738009,0.17777882,108210.0,108200.0,0.18484288]
[1756709738209,0.5103097,108210.0,108200.0,0.18484288]
[1756709739299,0.17777882,108210.0,108200.0,0.18484288]
[1756709739465,0.5103097,108210.0,108200.0,0.18484288]
[1756709739661,0.17777882,108210.0,108200.0,0.18484288]
[1756709740210,0.5103097,108210.0,108200.0,0.18484288]
[1756709743214,0.6951355,108210.0,108200.0,0.18484288]
[1756709744902,0.5103097,108210.0,108200.0,0.18484288]
[1756709747811,0.6951355,108210.0,108200.0,0.18484288]
[1756709751304,0.36260462,108210.0,108200.0,0.18484288]
[1756709751504,0.6951355,108210.0,108200.0,0.18484288]
[1756709752057,0.69508251,108210.0,108200.0,0.18484288]
[1756709752721,0.51025671,108210.0,108200.0,0.18484288]
[1756709753691,0.69508251,108210.0,108200.0,0.18484288]
[1756709758241,0.51025671,108210.0,108200.0,0.18484288]
[1756709758441,0.51013671,108210.0,108200.0,0.18484288]
[1756709758909,0.69496251,108210.0,108200.0,0.18484288]
[1756709766624,0.51013671,108210.0,108200.0,0.18484288]
[1756709766986,0.69496251,108210.0,108200.0,0.18484288]
[1756709769759,1.0274404,108210.0,108200.0,0.18484288]
[1756709770242,0.69496251,108210.0,108200.0,0.18484288]
[1756709770532,0.56701251,108210.0,108200.0,0.18484288]
[1756709770762,0.72269251,108210.0,108200.0,0.18484288]
[1756709771643,0.04970882,108210.0,108200.0,0.18484288]
[1756709771848,0.53786671,108210.0,108200.0,0.18484288]
[1756709773043,0.72269251,108210.0,108200.0,0.18484288]
[1756709773598,0.53786671,108210.0,108200.0,0.18484288]
[1756709774004,0.72266379,108210.0,108200.0,0.18484288]
[1756709774903,0.53783799,108210.0,108200.0,0.18484288]
[1756709775100,0.72266379,108210.0,108200.0,0.18484288]
[1756709776269,0.53783799,108210.0,108200.0,0.18484288]
[1756709777090,0.72266379,108210.0,108200.0,0.18484288]
[1756709779563,0.72266379,108210.0,108190.0,0.18533636]
[1756709779874,0.48808917,108200.0,108190.0,0.18533636]
[1756709781218,0.49735442,108200.0,108190.0,0.18533636]
[1756709781768,0.70313612,108200.0,108190.0,0.18533636]
[1756709782371,0.73090812,108200.0,108190.0,0.0014764]
[1756709782892,0.73090812,108200.0,108190.0,0.18633636]
[1756709787536,0.73086812,108200.0,108190.0,0.18633636]
[1756709787763,0.57526812,108200.0,108190.0,0.18633636]
[1756709787888,0.73086812,108200.0,108190.0,0.18633636]
[1756709791859,0.39841895,108200.0,108190.0,0.18633636]
[1756709792067,0.73086812,108200.0,108190.0,0.18633636]
[1756709795290,0.57526812,108200.0,108190.0,0.18633636]
[1756709795429,0.73086812,108200.0,108190.0,0.18633636]
[1756709796028,1.06350801,108200.0,108190.0,0.18633636]
[1756709797595,1.06350801,108200.0,108190.0,0.0014764]
[1756709797793,1.06350801,108200.0,108190.0,0.18633636]
[1756709801030,1.15648802,108200.0,108190.0,0.0014764]
[1756709802435,1.48903255,108200.0,108190.0,0.0014764]
[1756709802638,1.15648802,108200.0,108190.0,0.0014764]
[1756709803014,1.15644802,108200.0,108190.0,0.0014764]
[1756709804107,0.82401119,108200.0,108190.0,0.0014764]
[1756709809890,0.33579896,108200.0,108190.0,0.18633636]
[1756709810137,0.82397119,108200.0,108190.0,0.18633636]
[1756709810350,0.66845119,108200.0,108190.0,0.18633636]
[1756709810509,0.48360831,108200.0,108190.0,0.18633636]
[1756709810713,0.82397119,108200.0,108190.0,0.18633636]
[1756709811529,0.82397119,108200.0,108190.0,0.0014764]
[1756709811737,1.27167119,108200.0,108190.0,0.18633636]
[1756709817738,1.27167119,108200.0,108190.0,0.0014764]
[1756709820348,1.27167119,108200.0,108190.0,0.18633636]
[1756709821090,1.27167119,108200.0,108190.0,0.0014764]
[1756709821515,1.61167119,108200.0,108190.0,0.0014764]
[1756709823654,1.16397119,108200.0,108190.0,0.0014764]
[1756709826943,1.16597119,108200.0,108190.0,0.0014764]
[1756709827382,1.16397119,108200.0,108190.0,0.0014764]
[1756709827621,1.16397119,108200.0,108190.0,0.0004764]
[1756709827858,0.83631896,108200.0,108190.0,0.0004764]
[1756709828067,1.16897119,108200.0,108190.0,0.0004764]
[1756709828246,1.16597119,108200.0,108190.0,0.0004764]
[1756709828477,1.16897119,108200.0,108190.0,0.0004764]
[1756709830050,1.01345119,108200.0,108190.0,0.0004764]
[1756709830253,1.16893119,108200.0,108190.0,0.0004764]
[1756709830866,1.16693119,108200.0,108190.0,0.0004764]
[1756709831129,1.16893119,108200.0,108190.0,0.0004764]
[1756709831335,1.16593119,108200.0,108190.0,0.0004764]
[1756709831529,1.16893119,108200.0,108190.0,0.0004764]
[1756709832839,1.16693119,108200.0,108190.0,0.0004764]
[1756709833245,1.16893119,108200.0,108190.0,0.0004764]
[1756709834786,0.83627896,108200.0,108190.0,0.0004764]
[1756709834959,1.16889119,108200.0,108190.0,0.0004764]
[1756709838619,1.01345119,108200.0,108190.0,0.0004764]
[1756709838818,1.16889119,108200.0,108190.0,0.0004764]
[1756709839026,1.16389119,108200.0,108190.0,0.0004764]
[1756709839234,1.16689119,108200.0,108190.0,0.0004764]
[1756709839433,1.16889119,108200.0,108190.0,0.0004764]
[1756709850159,1.50154194,108200.0,108190.0,0.0004764]
[1756709851549,1.83419343,108200.0,108190.0,0.0004764]
[1756709862042,1.90523343,108200.0,108190.0,0.0004764]
[1756709862506,1.74979343,108200.0,108190.0,0.0004764]
[1756709862738,1.57250194,108200.0,108190.0,0.0004764]
[1756709869232,0.90719896,108200.0,108190.0,0.0004764]
[1756709869573,1.57250194,108200.0,108190.0,0.0004764]
[1756709872368,0.90719896,108200.0,108190.0,0.0004764]
[1756709872607,1.57250194,108200.0,108190.0,0.0004764]
[1756709874242,1.41714194,108200.0,108190.0,0.0004764]
[1756709874440,1.41714194,108200.0,108190.0,0.51798785]
[1756709874441,0.39090014,108200.0,108190.0,0.51798785]
[1756709874639,0.53695489,108200.0,108190.0,0.18533636]
[1756709874840,0.55789371,108200.0,108190.0,0.18533636]
[1756709875186,0.55589371,108200.0,108190.0,0.18533636]
[1756709875628,0.39957371,108200.0,108190.0,0.18533636]
[1756709875955,0.55589371,108200.0,108190.0,0.18533636]
[1756709876481,0.39957371,108200.0,108190.0,0.18533636]
[1756709876685,0.55689371,108200.0,108190.0,0.18533636]
[1756709877322,0.56605929,108200.0,108190.0,0.18533636]
[1756709877532,0.56405929,108200.0,108190.0,0.18533636]
[1756709877844,0.56605929,108200.0,108190.0,0.18533636]
[1756709878253,0.40673929,108200.0,108190.0,0.18533636]
[1756709878458,0.56205929,108200.0,108190.0,0.18533636]
[1756709878668,0.56605929,108200.0,108190.0,0.18533636]
[1756709881566,0.89871078,108200.0,108190.0,0.18533636]
[1756709882495,0.74339078,108200.0,108190.0,0.18533636]
[1756709882809,0.89871078,108200.0,108190.0,0.18533636]
[1756709888117,0.56605929,108200.0,108190.0,0.18533636]
[1756709888381,0.89871078,108200.0,108190.0,0.0004764]
[1756709888584,0.89867078,108200.0,108190.0,0.0004764]